[Event "Early-Titled-Tuesday-Blitz-November-28-2023"]
[Site "Chess.com"]
[Date "2023.11.28"]
[Round "7"]
[White "Gyulamiryan-koryun"]
[Black "KorolDimitriy75"]
[Result "1-0"]
[WhiteElo "1943"]
[BlackElo "2312"]
[TimeControl "180+1"]
[EndTime "9:24:04 PST"]
[Termination "Gyulamiryan-koryun won by checkmate"]

1. e4 {[%clk 0:02:59.1]} 1... c5 {[%clk 0:03:00]} 2. Nf3 {[%clk 0:02:58.3]} 2...
d6 {[%clk 0:02:59.8]} 3. d4 {[%clk 0:02:58]} 3... cxd4 {[%clk 0:03:00.7]} 4.
Nxd4 {[%clk 0:02:58.3]} 4... Nf6 {[%clk 0:03:00.8]} 5. Nc3 {[%clk 0:02:58.3]}
5... g6 {[%clk 0:03:01.2]} 6. Be3 {[%clk 0:02:57.2]} 6... Bg7 {[%clk 0:03:01.5]}
7. f3 {[%clk 0:02:57.1]} 7... O-O {[%clk 0:03:02.2]} 8. Qd2 {[%clk 0:02:57.6]}
8... Nc6 {[%clk 0:03:02.6]} 9. O-O-O {[%clk 0:02:53.7]} 9... d5 {[%clk
0:03:02.6]} 10. Nxc6 {[%clk 0:02:49.7]} 10... bxc6 {[%clk 0:03:02.4]} 11. e5
{[%clk 0:02:48]} 11... Nd7 {[%clk 0:03:00.3]} 12. f4 {[%clk 0:02:47.8]} 12... e6
{[%clk 0:02:58.1]} 13. h4 {[%clk 0:02:44.9]} 13... c5 {[%clk 0:02:34.6]} 14. Nb5
{[%clk 0:02:37.3]} 14... Ba6 {[%clk 0:01:24.9]} 15. h5 {[%clk 0:02:34.6]} 15...
Rb8 {[%clk 0:01:16.3]} 16. a4 {[%clk 0:02:30.5]} 16... Qb6 {[%clk 0:01:07.8]}
17. hxg6 {[%clk 0:02:24.7]} 17... fxg6 {[%clk 0:00:56]} 18. g4 {[%clk
0:02:11.7]} 18... Rf7 {[%clk 0:00:18.6]} 19. Qh2 {[%clk 0:02:08]} 19... Nf8
{[%clk 0:00:17.9]} 20. b3 {[%clk 0:02:02.1]} 20... Rfb7 {[%clk 0:00:13.8]} 21.
f5 {[%clk 0:01:52.4]} 21... exf5 {[%clk 0:00:12.2]} 22. gxf5 {[%clk 0:01:41.4]}
22... gxf5 {[%clk 0:00:11.6]} 23. Nd6 {[%clk 0:01:32.5]} 23... Qc7 {[%clk
0:00:08.2]} 24. Bxa6 {[%clk 0:01:29.3]} 24... Rb6 {[%clk 0:00:07.1]} 25. Bd3
{[%clk 0:01:09.2]} 25... c4 {[%clk 0:00:07]} 26. Bxf5 {[%clk 0:01:05.6]} 26...
cxb3 {[%clk 0:00:06.2]} 27. Bxh7+ {[%clk 0:01:04.2]} 27... Nxh7 {[%clk
0:00:06.2]} 28. Qxh7+ {[%clk 0:01:03.3]} 28... Kf8 {[%clk 0:00:06.4]} 29. Rdf1+
{[%clk 0:01:01.6]} 29... Ke7 {[%clk 0:00:06]} 30. Qxg7+ {[%clk 0:01:01.2]} 30...
Kd8 {[%clk 0:00:04.1]} 31. Rh8# {[%clk 0:00:59]} 1-0

[Event "Early-Titled-Tuesday-Blitz-November-28-2023"]
[Site "Chess.com"]
[Date "2023.11.28"]
[Round "7"]
[White "szachuspl"]
[Black "KVAIDAN"]
[Result "1-0"]
[WhiteElo "2525"]
[BlackElo "2355"]
[TimeControl "180+1"]
[EndTime "9:24:11 PST"]
[Termination "szachuspl won on time"]

1. d4 {[%clk 0:03:00.9]} 1... e6 {[%clk 0:02:59.8]} 2. c4 {[%clk 0:03:00.7]}
2... f5 {[%clk 0:03:00.1]} 3. g4 {[%clk 0:02:57.6]} 3... fxg4 {[%clk 0:02:59.4]}
4. e4 {[%clk 0:02:57.7]} 4... e5 {[%clk 0:02:49.1]} 5. dxe5 {[%clk 0:02:53]}
5... Nc6 {[%clk 0:02:45.4]} 6. Bf4 {[%clk 0:02:48.2]} 6... Bb4+ {[%clk
0:02:38.9]} 7. Nc3 {[%clk 0:02:47.7]} 7... Qe7 {[%clk 0:02:38.8]} 8. Qd5 {[%clk
0:02:46.2]} 8... Qe6 {[%clk 0:02:10.5]} 9. Ne2 {[%clk 0:02:44]} 9... Nge7 {[%clk
0:02:09.2]} 10. Qxe6 {[%clk 0:02:33.2]} 10... dxe6 {[%clk 0:02:08.9]} 11. O-O-O
{[%clk 0:02:33.5]} 11... O-O {[%clk 0:02:08.1]} 12. Bg3 {[%clk 0:02:33]} 12...
Ng6 {[%clk 0:02:08.2]} 13. Nb5 {[%clk 0:02:31.9]} 13... Ba5 {[%clk 0:02:04.9]}
14. a3 {[%clk 0:02:31.7]} 14... a6 {[%clk 0:02:03]} 15. Nbd4 {[%clk 0:02:31.2]}
15... Ncxe5 {[%clk 0:01:58.6]} 16. b4 {[%clk 0:02:31.2]} 16... Bb6 {[%clk
0:01:58.2]} 17. c5 {[%clk 0:02:31.9]} 17... Ba7 {[%clk 0:01:58.5]} 18. Nc3
{[%clk 0:02:32.3]} 18... a5 {[%clk 0:01:51]} 19. Ndb5 {[%clk 0:02:22]} 19...
axb4 {[%clk 0:01:47.5]} 20. axb4 {[%clk 0:02:22.6]} 20... Bb8 {[%clk 0:01:47.3]}
21. Kb2 {[%clk 0:02:22.4]} 21... b6 {[%clk 0:01:37.1]} 22. cxb6 {[%clk 0:02:11]}
22... cxb6 {[%clk 0:01:36.5]} 23. h4 {[%clk 0:02:11.1]} 23... Bb7 {[%clk
0:01:27.3]} 24. Nd6 {[%clk 0:02:01.9]} 24... Bxd6 {[%clk 0:01:20.9]} 25. Rxd6
{[%clk 0:02:01.4]} 25... Rae8 {[%clk 0:01:09.6]} 26. Rxb6 {[%clk 0:02:00.8]}
26... Rb8 {[%clk 0:01:02.1]} 27. Rxe6 {[%clk 0:01:53.4]} 27... Bxe4 {[%clk
0:01:01.9]} 28. Nxe4 {[%clk 0:01:41.9]} 28... Rxb4+ {[%clk 0:01:01.2]} 29. Kc3
{[%clk 0:01:42.3]} 29... Rxe4 {[%clk 0:01:01.3]} 30. Bg2 {[%clk 0:01:42.1]}
30... Rc4+ {[%clk 0:00:40]} 31. Kb3 {[%clk 0:01:38.4]} 31... Rb8+ {[%clk
0:00:39]} 32. Ka3 {[%clk 0:01:38.7]} 32... Rc5 {[%clk 0:00:32.6]} 33. Ra6 {[%clk
0:01:32.5]} 33... Nc4+ {[%clk 0:00:26.5]} 34. Ka2 {[%clk 0:01:32.5]} 34... Nge5
{[%clk 0:00:17.3]} 35. Rc1 {[%clk 0:01:27.1]} 35... Rb4 {[%clk 0:00:04.5]} 36.
h5 {[%clk 0:01:08.1]} 36... h6 {[%clk 0:00:01.3]} 37. Be4 {[%clk 0:01:05.1]} 1-0

[Event "Early-Titled-Tuesday-Blitz-November-28-2023"]
[Site "Chess.com"]
[Date "2023.11.28"]
[Round "7"]
[White "Timerkhanov"]
[Black "Goffredo_Fofi"]
[Result "1-0"]
[WhiteElo "2690"]
[BlackElo "2467"]
[TimeControl "180+1"]
[EndTime "9:24:16 PST"]
[Termination "Timerkhanov won by resignation"]

1. d4 {[%clk 0:03:00.9]} 1... g6 {[%clk 0:02:59.3]} 2. e4 {[%clk 0:03:00.2]}
2... Bg7 {[%clk 0:02:59.8]} 3. Nc3 {[%clk 0:03:00.2]} 3... c6 {[%clk 0:03:00.5]}
4. h4 {[%clk 0:02:55.5]} 4... d5 {[%clk 0:02:58.6]} 5. exd5 {[%clk 0:02:54.9]}
5... cxd5 {[%clk 0:02:58.4]} 6. h5 {[%clk 0:02:55.5]} 6... Nc6 {[%clk
0:02:56.5]} 7. Be3 {[%clk 0:02:53.4]} 7... e5 {[%clk 0:02:42.5]} 8. h6 {[%clk
0:02:51.3]} 8... Bf8 {[%clk 0:02:34.4]} 9. Nf3 {[%clk 0:02:45]} 9... e4 {[%clk
0:02:30]} 10. Ne5 {[%clk 0:02:45.3]} 10... f6 {[%clk 0:02:21.2]} 11. Nxc6 {[%clk
0:02:39.4]} 11... bxc6 {[%clk 0:02:22.1]} 12. Qd2 {[%clk 0:02:18.3]} 12... Rb8
{[%clk 0:02:22.2]} 13. Na4 {[%clk 0:02:18.1]} 13... Bb4 {[%clk 0:01:44.2]} 14.
c3 {[%clk 0:02:17]} 14... Bd6 {[%clk 0:01:44.8]} 15. Bf4 {[%clk 0:02:15.3]}
15... Ne7 {[%clk 0:01:44.3]} 16. Bxd6 {[%clk 0:02:13.4]} 16... Qxd6 {[%clk
0:01:45.2]} 17. Nc5 {[%clk 0:02:13.8]} 17... O-O {[%clk 0:01:41.1]} 18. b4
{[%clk 0:02:13.3]} 18... f5 {[%clk 0:01:40.6]} 19. Qg5 {[%clk 0:02:11.6]} 19...
f4 {[%clk 0:01:35]} 20. Be2 {[%clk 0:01:48]} 20... Rf5 {[%clk 0:01:03.8]} 21.
Qh4 {[%clk 0:01:39.1]} 21... f3 {[%clk 0:00:56.3]} 22. g4 {[%clk 0:01:39.2]}
22... Rf4 {[%clk 0:00:50]} 23. Bf1 {[%clk 0:01:39.4]} 23... Rxg4 {[%clk
0:00:43]} 24. Qh2 {[%clk 0:01:39.3]} 24... Qxh2 {[%clk 0:00:38.5]} 25. Rxh2
{[%clk 0:01:40.2]} 25... Rf4 {[%clk 0:00:37.3]} 26. O-O-O {[%clk 0:01:38.3]}
26... Rf7 {[%clk 0:00:32.1]} 27. a3 {[%clk 0:01:36.2]} 27... Bf5 {[%clk
0:00:30.6]} 28. c4 {[%clk 0:01:34.3]} 28... Nc8 {[%clk 0:00:26.8]} 29. cxd5
{[%clk 0:01:33.5]} 29... cxd5 {[%clk 0:00:27.7]} 30. Ba6 {[%clk 0:01:31.3]}
30... Nd6 {[%clk 0:00:22.6]} 31. Rhh1 {[%clk 0:01:30.1]} 31... Bc8 {[%clk
0:00:20.5]} 32. Bf1 {[%clk 0:01:20.1]} 32... Rc7 {[%clk 0:00:20.3]} 33. Kd2
{[%clk 0:01:18.6]} 33... Bf5 {[%clk 0:00:19.3]} 34. Ke3 {[%clk 0:01:17.4]} 34...
Rbc8 {[%clk 0:00:19.4]} 35. b5 {[%clk 0:01:13.7]} 35... Bd7 {[%clk 0:00:16.7]}
36. a4 {[%clk 0:01:08.1]} 36... Kf7 {[%clk 0:00:17]} 37. Kd2 {[%clk 0:01:04.5]}
37... Nb7 {[%clk 0:00:17.2]} 38. Nxd7 {[%clk 0:01:02.8]} 38... Rxd7 {[%clk
0:00:14.2]} 39. Bh3 {[%clk 0:01:02.4]} 39... Rdc7 {[%clk 0:00:14.6]} 40. Bxc8
{[%clk 0:01:02.7]} 40... Rxc8 {[%clk 0:00:15.5]} 41. Rc1 {[%clk 0:01:03.2]}
41... Rxc1 {[%clk 0:00:13.5]} 42. Rxc1 {[%clk 0:01:04.1]} 1-0

[Event "Early-Titled-Tuesday-Blitz-November-28-2023"]
[Site "Chess.com"]
[Date "2023.11.28"]
[Round "7"]
[White "Zhigalko_Sergei"]
[Black "FunnyDuck66"]
[Result "1-0"]
[WhiteElo "2913"]
[BlackElo "2559"]
[TimeControl "180+1"]
[EndTime "9:24:17 PST"]
[Termination "Zhigalko_Sergei won by resignation"]

1. e4 {[%clk 0:03:00.9]} 1... c6 {[%clk 0:03:00.1]} 2. d4 {[%clk 0:03:00.8]}
2... d5 {[%clk 0:03:00.5]} 3. e5 {[%clk 0:03:01.4]} 3... Bf5 {[%clk 0:03:00.2]}
4. Nf3 {[%clk 0:03:02]} 4... e6 {[%clk 0:02:58.6]} 5. Be2 {[%clk 0:03:02.3]}
5... Nd7 {[%clk 0:02:58.2]} 6. O-O {[%clk 0:03:02.3]} 6... a5 {[%clk 0:02:57.3]}
7. a4 {[%clk 0:03:00.2]} 7... f6 {[%clk 0:02:55]} 8. Bf4 {[%clk 0:02:52]} 8...
g5 {[%clk 0:02:20.9]} 9. Bg3 {[%clk 0:02:47.6]} 9... Bg7 {[%clk 0:01:55.7]} 10.
Nbd2 {[%clk 0:02:34.3]} 10... h5 {[%clk 0:01:44.2]} 11. exf6 {[%clk 0:02:29]}
11... Bxf6 {[%clk 0:01:40.9]} 12. Ra3 {[%clk 0:01:45.1]} 12... g4 {[%clk
0:01:19.2]} 13. Ne5 {[%clk 0:01:44]} 13... Nxe5 {[%clk 0:01:13.8]} 14. Bxe5
{[%clk 0:01:41.8]} 14... Bxe5 {[%clk 0:00:59.1]} 15. dxe5 {[%clk 0:01:42.1]}
15... Nh6 {[%clk 0:00:36.3]} 16. Nb3 {[%clk 0:01:19]} 16... O-O {[%clk
0:00:20.5]} 17. Qd2 {[%clk 0:01:18.1]} 17... Kh7 {[%clk 0:00:19.3]} 18. Nd4
{[%clk 0:01:08.4]} 18... c5 {[%clk 0:00:16]} 19. Nxf5 {[%clk 0:00:57.1]} 19...
Nxf5 {[%clk 0:00:16.9]} 20. h3 {[%clk 0:00:44.8]} 20... gxh3 {[%clk 0:00:14]}
21. Rxh3 {[%clk 0:00:44.1]} 21... h4 {[%clk 0:00:12.5]} 22. Qf4 {[%clk
0:00:34.1]} 22... Rg8 {[%clk 0:00:06.7]} 23. Bd3 {[%clk 0:00:32.4]} 23... Qg5
{[%clk 0:00:06.9]} 24. Rxh4+ {[%clk 0:00:31.7]} 24... Kg6 {[%clk 0:00:05.3]} 25.
Rg4 {[%clk 0:00:31.4]} 1-0

[Event "Early-Titled-Tuesday-Blitz-November-28-2023"]
[Site "Chess.com"]
[Date "2023.11.28"]
[Round "7"]
[White "hakanazeri2"]
[Black "falzehope0"]
[Result "0-1"]
[WhiteElo "2545"]
[BlackElo "2381"]
[TimeControl "180+1"]
[EndTime "9:24:20 PST"]
[Termination "falzehope0 won by resignation"]

1. Nf3 {[%clk 0:03:00.9]} 1... e6 {[%clk 0:02:58]} 2. c4 {[%clk 0:02:52.8]} 2...
d5 {[%clk 0:02:48.1]} 3. d4 {[%clk 0:02:48.2]} 3... c6 {[%clk 0:02:47.9]} 4. Qc2
{[%clk 0:02:41.8]} 4... f5 {[%clk 0:02:47.6]} 5. Nc3 {[%clk 0:02:31.6]} 5... Bd6
{[%clk 0:02:46.1]} 6. Bg5 {[%clk 0:02:24.1]} 6... Ne7 {[%clk 0:02:40.6]} 7. e3
{[%clk 0:02:14.3]} 7... O-O {[%clk 0:02:33.1]} 8. c5 {[%clk 0:02:13.6]} 8... Bc7
{[%clk 0:02:32.9]} 9. Bf4 {[%clk 0:02:12.8]} 9... Ng6 {[%clk 0:02:30.6]} 10. g3
{[%clk 0:02:06.6]} 10... Nd7 {[%clk 0:02:24.2]} 11. h4 {[%clk 0:02:05.6]} 11...
e5 {[%clk 0:02:23.2]} 12. dxe5 {[%clk 0:01:45.3]} 12... Ndxe5 {[%clk 0:02:16.1]}
13. Nxe5 {[%clk 0:01:34.6]} 13... Nxe5 {[%clk 0:02:13.7]} 14. Bg2 {[%clk
0:01:33.8]} 14... Qe7 {[%clk 0:02:11]} 15. b4 {[%clk 0:01:27.8]} 15... a5 {[%clk
0:02:09.1]} 16. Bxd5+ {[%clk 0:01:07.8]} 16... cxd5 {[%clk 0:01:58]} 17. Nxd5
{[%clk 0:01:08.7]} 17... Qf7 {[%clk 0:01:23.9]} 18. Nxc7 {[%clk 0:01:04.4]}
18... Qxc7 {[%clk 0:01:13.6]} 19. Qc3 {[%clk 0:00:50.2]} 19... Qc6 {[%clk
0:01:01.6]} 20. O-O-O {[%clk 0:00:09.3]} 20... Ng6 {[%clk 0:00:55.3]} 21. h5
{[%clk 0:00:09.5]} 21... Nxf4 {[%clk 0:00:54.2]} 22. gxf4 {[%clk 0:00:09.8]}
22... axb4 {[%clk 0:00:54]} 23. Qd4 {[%clk 0:00:06.3]} 23... Rxa2 {[%clk
0:00:40.4]} 24. Rhg1 {[%clk 0:00:06.2]} 24... Qf6 {[%clk 0:00:35.4]} 25. Qxf6
{[%clk 0:00:02.2]} 25... Rxf6 {[%clk 0:00:33.4]} 26. h6 {[%clk 0:00:02.3]} 26...
g6 {[%clk 0:00:33]} 27. Rd8+ {[%clk 0:00:01.9]} 27... Rf8 {[%clk 0:00:32.7]} 28.
Rd6 {[%clk 0:00:01.6]} 28... Ra1+ {[%clk 0:00:32.1]} 0-1

[Event "Early-Titled-Tuesday-Blitz-November-28-2023"]
[Site "Chess.com"]
[Date "2023.11.28"]
[Round "7"]
[White "fighter2jz"]
[Black "Jospem"]
[Result "0-1"]
[WhiteElo "2849"]
[BlackElo "3054"]
[TimeControl "180+1"]
[EndTime "9:24:28 PST"]
[Termination "Jospem won by resignation"]

1. e4 {[%clk 0:03:00.9]} 1... c5 {[%clk 0:03:00]} 2. Nf3 {[%clk 0:03:00.5]} 2...
d6 {[%clk 0:03:00.4]} 3. d4 {[%clk 0:03:00.4]} 3... cxd4 {[%clk 0:03:01.3]} 4.
Nxd4 {[%clk 0:03:01.2]} 4... a6 {[%clk 0:03:02]} 5. c4 {[%clk 0:03:00.5]} 5...
e6 {[%clk 0:03:02.6]} 6. Nc3 {[%clk 0:03:01]} 6... Nf6 {[%clk 0:03:03.2]} 7. Be2
{[%clk 0:02:58.1]} 7... b6 {[%clk 0:03:03.7]} 8. O-O {[%clk 0:02:58.5]} 8... Bb7
{[%clk 0:03:04.1]} 9. Qd3 {[%clk 0:02:58]} 9... Nbd7 {[%clk 0:03:04.6]} 10. b4
{[%clk 0:02:58.6]} 10... Be7 {[%clk 0:03:03.9]} 11. f4 {[%clk 0:02:59.2]} 11...
O-O {[%clk 0:03:04.2]} 12. Bd2 {[%clk 0:02:55.1]} 12... Rc8 {[%clk 0:03:04.1]}
13. Rac1 {[%clk 0:02:43.3]} 13... g6 {[%clk 0:03:01.7]} 14. Nb3 {[%clk
0:02:24.7]} 14... Qc7 {[%clk 0:02:39.4]} 15. g4 {[%clk 0:02:20.8]} 15... Rfd8
{[%clk 0:02:27.4]} 16. g5 {[%clk 0:02:20.6]} 16... Ne8 {[%clk 0:02:26]} 17. f5
{[%clk 0:02:04.3]} 17... Ne5 {[%clk 0:01:50.4]} 18. Qh3 {[%clk 0:02:02.6]} 18...
Qd7 {[%clk 0:01:39.2]} 19. fxe6 {[%clk 0:01:26.3]} 19... fxe6 {[%clk 0:01:27.1]}
20. Nd4 {[%clk 0:01:26]} 20... Ng7 {[%clk 0:01:26.2]} 21. Rf6 {[%clk 0:01:03]}
21... Nxc4 {[%clk 0:01:10.8]} 22. Bg4 {[%clk 0:00:44.5]} 22... Ne5 {[%clk
0:00:39.3]} 23. Bxe6+ {[%clk 0:00:12.1]} 23... Nxe6 {[%clk 0:00:39.1]} 24. Rxe6
{[%clk 0:00:12.6]} 24... Rc4 {[%clk 0:00:29.5]} 25. Nd5 {[%clk 0:00:10.6]} 25...
Bxd5 {[%clk 0:00:29.4]} 26. exd5 {[%clk 0:00:02.7]} 26... Rxd4 {[%clk
0:00:29.6]} 0-1

[Event "Early-Titled-Tuesday-Blitz-November-28-2023"]
[Site "Chess.com"]
[Date "2023.11.28"]
[Round "7"]
[White "Mystery2007"]
[Black "EvgenyBurmakin"]
[Result "0-1"]
[WhiteElo "2550"]
[BlackElo "2426"]
[TimeControl "180+1"]
[EndTime "9:24:28 PST"]
[Termination "EvgenyBurmakin won by checkmate"]

1. Nf3 {[%clk 0:03:00.9]} 1... Nf6 {[%clk 0:02:59.2]} 2. c4 {[%clk 0:03:01.3]}
2... g6 {[%clk 0:02:59.6]} 3. b3 {[%clk 0:02:59.3]} 3... Bg7 {[%clk 0:02:59.3]}
4. Bb2 {[%clk 0:03:00.2]} 4... O-O {[%clk 0:02:58.6]} 5. g3 {[%clk 0:03:00.2]}
5... d6 {[%clk 0:02:58.4]} 6. Bg2 {[%clk 0:03:00.7]} 6... e5 {[%clk 0:02:58.5]}
7. d3 {[%clk 0:02:59.3]} 7... Nc6 {[%clk 0:02:57.7]} 8. O-O {[%clk 0:02:59.9]}
8... h6 {[%clk 0:02:50.1]} 9. Nbd2 {[%clk 0:03:00.1]} 9... Be6 {[%clk
0:02:49.7]} 10. a3 {[%clk 0:03:00.6]} 10... Qd7 {[%clk 0:02:50.1]} 11. Re1
{[%clk 0:02:59.6]} 11... a5 {[%clk 0:02:49.2]} 12. Qc2 {[%clk 0:02:59.7]} 12...
Bh3 {[%clk 0:02:47.9]} 13. Bh1 {[%clk 0:02:59.6]} 13... Ng4 {[%clk 0:02:41.9]}
14. e3 {[%clk 0:02:52.8]} 14... f5 {[%clk 0:02:39.5]} 15. Nh4 {[%clk 0:02:37.6]}
15... Kh7 {[%clk 0:02:31.3]} 16. f3 {[%clk 0:02:20.1]} 16... Nf6 {[%clk
0:02:06]} 17. d4 {[%clk 0:02:06.5]} 17... g5 {[%clk 0:01:55.7]} 18. Ng2 {[%clk
0:01:57.9]} 18... Kh8 {[%clk 0:01:55.2]} 19. d5 {[%clk 0:01:55.1]} 19... Ne7
{[%clk 0:01:54.6]} 20. e4 {[%clk 0:01:55.6]} 20... f4 {[%clk 0:01:30.8]} 21. Nf1
{[%clk 0:01:53.9]} 21... Ng6 {[%clk 0:01:27.7]} 22. b4 {[%clk 0:01:37.3]} 22...
g4 {[%clk 0:01:20.6]} 23. fxg4 {[%clk 0:01:30.5]} 23... Nxg4 {[%clk 0:01:19.9]}
24. gxf4 {[%clk 0:01:13.6]} 24... exf4 {[%clk 0:01:14.1]} 25. Nd2 {[%clk
0:00:45.3]} 25... f3 {[%clk 0:01:07.5]} 26. Nxf3 {[%clk 0:00:45]} 26... Rxf3
{[%clk 0:01:06.6]} 27. e5 {[%clk 0:00:31.4]} 27... N6xe5 {[%clk 0:00:55.5]} 28.
Nh4 {[%clk 0:00:24.7]} 28... Rf2 {[%clk 0:00:49.4]} 29. Ng6+ {[%clk 0:00:12.8]}
29... Nxg6 {[%clk 0:00:48.4]} 30. Qxg6 {[%clk 0:00:13.7]} 30... Bxb2 {[%clk
0:00:42.9]} 31. Ra2 {[%clk 0:00:05.1]} 31... Bd4 {[%clk 0:00:41.2]} 32. Be4
{[%clk 0:00:01.4]} 32... Rf1# {[%clk 0:00:40.4]} 0-1

[Event "Early-Titled-Tuesday-Blitz-November-28-2023"]
[Site "Chess.com"]
[Date "2023.11.28"]
[Round "7"]
[White "AsaHoffmann"]
[Black "FMStan15"]
[Result "1/2-1/2"]
[WhiteElo "2351"]
[BlackElo "2073"]
[TimeControl "180+1"]
[EndTime "9:24:28 PST"]
[Termination "Game drawn by agreement"]

1. d4 {[%clk 0:02:55.6]} 1... Nf6 {[%clk 0:02:56.8]} 2. Bg5 {[%clk 0:02:50.8]}
2... h6 {[%clk 0:02:54.8]} 3. Bh4 {[%clk 0:02:50]} 3... d5 {[%clk 0:02:54.5]} 4.
e3 {[%clk 0:02:49.8]} 4... Bf5 {[%clk 0:02:54.6]} 5. Bd3 {[%clk 0:02:48.4]} 5...
Bxd3 {[%clk 0:02:53.8]} 6. Qxd3 {[%clk 0:02:48.2]} 6... c6 {[%clk 0:02:54.2]} 7.
Nd2 {[%clk 0:02:47.8]} 7... e6 {[%clk 0:02:54.2]} 8. f4 {[%clk 0:02:47.7]} 8...
Be7 {[%clk 0:02:54]} 9. Ngf3 {[%clk 0:02:47.6]} 9... Nbd7 {[%clk 0:02:53.5]} 10.
Ne5 {[%clk 0:02:47.5]} 10... Nxe5 {[%clk 0:02:52.7]} 11. fxe5 {[%clk 0:02:47.3]}
11... Nd7 {[%clk 0:02:52.8]} 12. Bxe7 {[%clk 0:02:46.7]} 12... Qxe7 {[%clk
0:02:52.5]} 13. O-O {[%clk 0:02:46.3]} 13... O-O {[%clk 0:02:52.6]} 14. e4
{[%clk 0:02:45.1]} 14... dxe4 {[%clk 0:02:44.4]} 15. Nxe4 {[%clk 0:02:44.7]}
15... f5 {[%clk 0:02:36]} 16. exf6 {[%clk 0:02:40.5]} 16... Nxf6 {[%clk
0:02:35]} 17. Rae1 {[%clk 0:02:38.9]} 17... Nxe4 {[%clk 0:02:30.4]} 18. Qxe4
{[%clk 0:02:38.3]} 18... Rxf1+ {[%clk 0:02:29.2]} 19. Kxf1 {[%clk 0:02:37.8]}
19... Rf8+ {[%clk 0:02:27.6]} 20. Kg1 {[%clk 0:02:37.3]} 20... Rf6 {[%clk
0:02:25.5]} 21. a3 {[%clk 0:02:35.1]} 21... Qd6 {[%clk 0:02:21.1]} 22. g3 {[%clk
0:02:32.1]} 22... Qd5 {[%clk 0:02:16.2]} 23. b3 {[%clk 0:02:25.8]} 23... Qxe4
{[%clk 0:02:14.7]} 24. Rxe4 {[%clk 0:02:25.4]} 24... Kf7 {[%clk 0:02:14.4]} 25.
c4 {[%clk 0:02:25]} 25... Ke7 {[%clk 0:02:12.7]} 26. Kg2 {[%clk 0:02:24.3]}
26... Kd6 {[%clk 0:02:11.9]} 27. g4 {[%clk 0:02:12.6]} 27... g5 {[%clk
0:02:08.9]} 28. Kg3 {[%clk 0:02:11.2]} 28... Rf1 {[%clk 0:02:07]} 29. Re3 {[%clk
0:02:03.9]} 29... Rd1 {[%clk 0:02:03.3]} 30. c5+ {[%clk 0:01:52.7]} 30... Kd5
{[%clk 0:01:35.3]} 31. Re5+ {[%clk 0:01:51.5]} 31... Kxd4 {[%clk 0:01:35.1]} 32.
Rxe6 {[%clk 0:01:51.6]} 32... Kxc5 {[%clk 0:01:35]} 33. Rxh6 {[%clk 0:01:48.6]}
33... Rd3+ {[%clk 0:01:34.2]} 34. Kg2 {[%clk 0:01:48.1]} 34... Rxb3 {[%clk
0:01:34.3]} 35. Rg6 {[%clk 0:01:48.2]} 35... Rxa3 {[%clk 0:01:16.9]} 36. Rxg5+
{[%clk 0:01:48]} 36... Kd6 {[%clk 0:01:17.2]} 37. h4 {[%clk 0:01:48]} 37... b5
{[%clk 0:01:00.4]} 38. h5 {[%clk 0:01:47.7]} 38... Re3 {[%clk 0:00:59.8]} 39. h6
{[%clk 0:01:45.1]} 39... Re8 {[%clk 0:00:51.9]} 40. h7 {[%clk 0:01:44.4]} 40...
Rh8 {[%clk 0:00:51.5]} 41. Rh5 {[%clk 0:01:42.9]} 41... Ke6 {[%clk 0:00:51]} 42.
g5 {[%clk 0:01:43.1]} 42... Kf5 {[%clk 0:00:43.7]} 43. Kg3 {[%clk 0:01:40.7]}
43... Kg6 {[%clk 0:00:43.3]} 44. Rh6+ {[%clk 0:01:25.8]} 44... Kxg5 {[%clk
0:00:42.6]} 45. Rxc6 {[%clk 0:01:25]} 45... Rxh7 {[%clk 0:00:42.1]} 46. Rc5+
{[%clk 0:01:24.4]} 46... Kf6 {[%clk 0:00:42.2]} 47. Rxb5 {[%clk 0:01:24.2]}
47... Re7 {[%clk 0:00:34.1]} 48. Kf4 {[%clk 0:01:23.1]} 48... Kf7 {[%clk
0:00:33.2]} 49. Re5 {[%clk 0:01:19.5]} 49... Rb7 {[%clk 0:00:25.6]} 50. Ke4
{[%clk 0:01:18.3]} 50... Re7 {[%clk 0:00:22.7]} 51. Rxe7+ {[%clk 0:01:17.4]}
51... Kxe7 {[%clk 0:00:22.6]} 52. Kd5 {[%clk 0:01:17.5]} 52... Kd7 {[%clk
0:00:23]} 53. Kc5 {[%clk 0:01:17.5]} 53... Kc7 {[%clk 0:00:23.4]} 54. Kb5 {[%clk
0:01:17.7]} 54... Kb7 {[%clk 0:00:23.9]} 55. Ka5 {[%clk 0:01:17.7]} 55... a6
{[%clk 0:00:24.3]} 56. Ka4 {[%clk 0:01:17.2]} 56... Kb6 {[%clk 0:00:24.8]} 57.
Kb4 {[%clk 0:01:17.2]} 57... a5+ {[%clk 0:00:25]} 58. Ka4 {[%clk 0:01:14.6]}
58... Ka6 {[%clk 0:00:21.1]} 59. Ka3 {[%clk 0:01:14]} 59... Kb5 {[%clk
0:00:19.7]} 1/2-1/2